Cogmind - Beta 13 @@@ ROGUE MODE // 2024.04.14 @ 13:00:32 Player: Oldman Pu Result: Destroyed by Heavy Ion Engine chain reaction Performance ------------- Evolutions (1) 500 Regions Visited (3) 600 Robots Destroyed (94) 470 Value Destroyed (2016) 2016 Prototype IDs (6) 120 Alien Tech Used (0) 0 Bonus (149) 149 TOTAL SCORE: 3855 Bonus ------- High Alert Combat Kills 149 Cogmind --------- Core Integrity 0/400 Matter 300/300 Energy 278/280 System Corruption 1% Temperature Cool (24) Movement Rolling (125) Ox3 Location -9/Storage Parts ------- > --- POWER (1) -------- Heavy Ion Engine > --- PROPULSION (2) --- Wheel > --- UTILITY (3) ------ Cooling System Large Storage Unit Improved Targeting Computer > --- WEAPON (3) ------- Advanced Beam Cannon Advanced Beam Cannon > --- INVENTORY (15) --- Improved Ion Engine Improved Ion Engine Improved Ion Engine Wheel Wheel Cooling System Cooling System Cooling System Light Armor Plating Improved Medium Laser Improved Medium Laser Advanced Beam Cannon Heavy Assault Rifle Improved Assault Rifle Improved Assault Rifle Peak State ------------ > --- POWER ------------ Heavy Ion Engine > --- PROPULSION ------- Wheel Wheel > --- UTILITY ---------- Cooling System Large Storage Unit Improved Targeting Computer > --- WEAPON ----------- Improved Medium Laser Advanced Beam Cannon Advanced Beam Cannon > --- INVENTORY -------- Improved Ion Engine Improved Ion Engine Improved Ion Engine Wheel Wheel Heat Sink Cooling System Cooling System Cooling System Improved Medium Laser Improved Medium Laser Beam Cannon Advanced Beam Cannon Heavy Assault Rifle Improved Assault Rifle [Rating: 22] Favorites ----------- Power Ion Engine Engine Ion Engine Propulsion Wheel Treads Light Treads Leg Aluminum Leg Wheel Wheel Utility Large Storage Unit Device Cooling System Storage Large Storage Unit Processor Improved Targeting Computer Protection Light Armor Plating Weapon Medium Laser Energy Gun Medium Laser Energy Cannon Advanced Beam Cannon Ballistic Gun Light Assault Rifle Build | -11 -10 -9 -9 ------- Run | Yrd Mat Mat Sto Slots Evolved 2 | . . 2 . Power . | . . . . Propulsion . | . . . . Utility 1 | . . 1 . Weapon 1 | . . 1 . Parts Attached 72 | 6 18 46 2 Power 10 | 1 2 7 . Engine 10 | 1 2 7 . Core . | . . . . Reactor . | . . . . Propulsion 20 | 2 4 12 2 Treads 4 | . . 4 . Leg 2 | . 2 . . Wheel 14 | 2 2 8 2 Hover . | . . . . Flight . | . . . . Utility 15 | 1 5 9 . Device 6 | . 1 5 . Storage 6 | 1 3 2 . Processor 2 | . 1 1 . Hackware . | . . . . Protection 1 | . . 1 . Artifact . | . . . . Weapon 27 | 2 7 18 . Energy Gun 14 | 2 6 6 . Energy Cannon 7 | . . 7 . Ballistic Gun 6 | . 1 5 . Ballistic Cannon . | . . . . Launcher . | . . . . Special Weapon . | . . . . Impact Weapon . | . . . . Slashing Weapon . | . . . . Piercing Weapon . | . . . . Special Melee Weapon . | . . . . Unidentified Prototypes 5 | . . 5 . Parts Lost 20 | . 6 12 2 Power 2 | . 1 1 . Propulsion 7 | . 3 3 1 Utility 3 | . . 3 . Weapon 8 | . 2 5 1 Highest Loss Streak 5 | . 5 3 2 To Critical Strikes . | . . . . Average Slot Usage (%) 96 | . 95 95 100 Engine 11 | . 13 10 11 Treads 4 | . . 7 . Leg 5 | . 14 1 . Wheel 11 | . 12 10 22 Device 11 | . 7 14 11 Storage 12 | . 14 11 11 Processor 5 | . 4 4 11 Protection 1 | . . 2 . Energy Gun 15 | . 23 11 11 Energy Cannon 10 | . . 15 22 Ballistic Gun 4 | . 4 5 . Naked Turns . | . . . . Heaviest Build 42 | 13 30 42 41 Greatest Support 40 | 26 26 40 20 Greatest Overweight (x) 12 | . 7 12 2 Average Overweight (x) 1 | . . 1 2 Largest Inventory Capacity 15 | 8 15 15 15 Average Capacity 14 | 6 13 15 15 Most Carried 15 | 1 12 15 15 Average Carried 10 | . 5 13 15 Final Capacity 15 | 8 15 15 15 Final Carried 15 | 1 12 15 15 Class Distribution -------------------- 44% | Gunner 24% | Mutant 12% | Tank 11% | Scavenger-Mutant 7% | Scavenger-Gunner Dominant Class ---------------- Mutant | -10/Materials Gunner | -9/Materials Gunner | -9/Storage Resources | -11 -10 -9 -9 ----------- Run | Yrd Mat Mat Sto Matter Collected 997 | 147 284 546 20 Remotely . | . . . . Salvage Created 3300 | . 492 1895 913 Parts 189 | . 32 107 50 Haulers Intercepted 14 | . 2 6 6 Recyclers Shooed . | . . . . Parts Field Recycled . | . . . . Retrieved Matter . | . . . . Parts Self-Destructed . | . . . . Prevented . | . . . . Kills | -11 -10 -9 -9 ------- Run | Yrd Mat Mat Sto Combat Hostiles Destroyed 56 | . 9 32 15 Guns 27 | . 9 18 . Cannons 21 | . . 7 14 AOE 3 | . . 3 . Classes Destroyed 10 | . 5 5 . Worker 6 | . . 5 1 Builder 3 | . 2 1 . Hauler 14 | . 2 6 6 Recycler 3 | . . 2 1 Operator 2 | . . 2 . Watcher 10 | . 3 5 2 Swarmer 19 | . 3 8 8 Grunt 22 | . 6 13 3 Duelist 1 | . . 1 . Sentry 14 | . . 10 4 Best Kill Streak 7 | . 4 6 7 Combat Bots Only 6 | . 4 4 6 Max Kills in Single Turn 3 | . 1 3 2 Gunslinging 1 | . . 1 . Exploded 3 | . . 3 . Melee . | . . . . Uniques/NPCs Destroyed . | . . . . Combat | -11 -10 -9 -9 -------- Run | Yrd Mat Mat Sto Hostile Shots Fired 272 | . 64 156 52 Missed 59 | . 13 35 11 Damage Taken 2906 | . 661 1741 504 Core 539 | . 127 201 211 Absorbed by Shields . | . . . . Core Remaining (%) 74 | 100 49 . . Volleys Fired 212 | . 68 106 38 Largest 3 | . 2 3 3 Hottest 192 | . 100 192 192 Shots Fired 552 | . 129 310 113 Gun 371 | . 129 205 37 Cannon 181 | . . 105 76 Launcher . | . . . . Special . | . . . . Kinetic 67 | . 11 56 . Thermal 485 | . 118 254 113 Explosive . | . . . . Electromagnetic . | . . . . Robot Hit Streak 21 | . 7 21 10 Robot Miss Streak 7 | . 4 4 7 Penetration Max . | . . . . Secondary Targets 2 | . . 2 . Max Gunslinging Chain 1 | . . 1 . Shots Hit Robots 326 | . 78 192 56 Core Hits 117 | . 29 62 26 Critical Kills 1 | . . . 1 Critical Parts Destroyed . | . . . . Critical Strikes 14 | . 3 9 2 Burn 13 | . 3 9 1 Meltdown 1 | . . . 1 Melee Attacks . | . . . . Impact . | . . . . Slashing . | . . . . Piercing . | . . . . Sneak Attacks . | . . . . Combat Hostiles . | . . . . Follow-up Attacks . | . . . . Damage Inflicted 5517 | . 938 3386 1193 Guns 2881 | . 916 1814 151 Cannons 2297 | . . 1255 1042 Explosions 317 | . . 317 . Melee . | . . . . Ramming 22 | . 22 . . Kinetic 334 | . 27 307 . Thermal 5161 | . 889 3079 1193 Explosive . | . . . . Electromagnetic . | . . . . Impact . | . . . . Slashing . | . . . . Piercing . | . . . . Highest Corruption 4 | . 4 . . Average Corruption 4 | . 4 . . Corruption Purged . | . . . . Corruption Blocked . | . . . . Effects 17 | . 17 . . Message Errors 3 | . 3 . . Matter Fused 3 | . 3 . . Heat Flow Errors 4 | . 4 . . Energy Discharges 1 | . 1 . . Data Loss (minor) 2 | . 2 . . Alerts 3 | . 3 . . Weapon Failures 1 | . 1 . . Overload Shots . | . . . . Overflow Damage 142 | . . 141 1 Projectiles 35 | . . 34 1 Explosions 107 | . . 107 . Melee . | . . . . Knockbacks . | . . . . Impact . | . . . . Kinetic . | . . . . Secondary . | . . . . Self-Inflicted Damage 70 | . 10 60 . Shots 1 | . . 1 . Rammed 2 | . 2 . . Targets Rammed 2 | . 2 . . Kicked . | . . . . Crushed . | . . . . Highest Temperature 464 | . 464 329 412 Average Temperature 105 | . 142 74 104 Received Heat Transfer 942 | . 336 516 90 Effects 10 | . 10 . . Shutdowns 3 | . 3 . . Interference 5 | . 5 . . Short Circuit 1 | . 1 . . Damage (minor) 1 | . 1 . . Siege Activations . | . . . . Robots Corrupted . | . . . . Combat Hostiles . | . . . . Parts Fried . | . . . . Impact Corruptions . | . . . . Robots Melted 5 | . . 4 1 Combat Hostiles 5 | . . 4 1 Parts Melted 32 | . 5 22 5 Heat Transferred 12149 | . 2649 7206 2294 Parts Sabotaged . | . . . . Parts Stolen . | . . . . Parts Stripped . | . . . . Power Chain Reactions . | . . . . Alert | -11 -10 -9 -9 ------- Run | Yrd Mat Mat Sto Peak Influence 867 | . 156 667 867 Initial 281 | . . 9 281 Average 243 | . 50 294 617 Maximum Alert Level 3 | . . 2 3 Low Security (%) 55 | 100 100 37 . Level 1 23 | . . 37 21 Level 2 17 | . . 24 38 Level 3 3 | . . . 39 Level 4 . | . . . . Level 5 . | . . . . High Security . | . . . . Max Security . | . . . . Squads Dispatched 6 | . 1 4 1 Investigation 1 | . . 1 . Extermination . | . . . . Reinforcement 5 | . 1 3 1 Assault . | . . . . Garrison . | . . . . Intercept . | . . . . Searches Triggered . | . . . . Construction Impeded 1 | . . 1 . Haulers Reinforced . | . . . . Active Scanning Responses . | . . . . Cargo Convoy Interrupts . | . . . . Stealth | -11 -10 -9 -9 --------- Run | Yrd Mat Mat Sto Distress Signals 5 | . 1 2 2 Communications Jammed . | . . . . Distress Signals . | . . . . Times Spotted 93 | . 22 48 23 Peak Tracking Total 6 | . 6 4 5 Tactical Retreats 4 | . . . 4 Traps | -11 -10 -9 -9 ------- Run | Yrd Mat Mat Sto Traps Triggered 4 | . 2 1 1 Indirectly . | . . . . Trap Hack Attempts . | . . . . Triggered . | . . . . Disarmed . | . . . . Reprogrammed . | . . . . Reused . | . . . . Traps Extracted . | . . . . Installed . | . . . . Triggered . | . . . . Machines | -11 -10 -9 -9 ---------- Run | Yrd Mat Mat Sto Machines Disabled 9 | . . 9 . Max in Single Turn 3 | . . 3 . Machines Repaired . | . . . . Machines Dismantled . | . . . . Machines Sabotaged . | . . . . Overloaded Fab Kills . | . . . . Hacking | -11 -10 -9 -9 --------- Run | Yrd Mat Mat Sto Machines Accessed 10 | . 3 4 3 Terminals 8 | . 3 2 3 Fabricators . | . . . . Repair Stations . | . . . . Recycling Units . | . . . . Scanalyzers 2 | . . 2 . Garrison Access . | . . . . Total Hacks 21 | . 4 10 7 Successful 18 | . 2 10 6 Failed 3 | . 2 . 1 Catastrophic 1 | . 1 . . Database Lockouts . | . . . . Manual . | . . . . Terminals 15 | . 4 4 7 Fabricators . | . . . . Repair Stations . | . . . . Recycling Units . | . . . . Scanalyzers 6 | . . 6 . Garrison Access . | . . . . Terminal Hacks 12 | . 2 4 6 Record 2 | . . . 2 Prototype ID Bank 1 | . . 1 . Open Door 2 | . . . 2 Branch Access Points 2 | . 1 . 1 Emergency Access Points 3 | . 1 2 . Locate Traps 1 | . . . 1 Hauler Manifests 1 | . . 1 . Fabricator Hacks . | . . . . Repair Station Hacks . | . . . . Recycling Unit Hacks . | . . . . Scanalyzer 6 | . . 6 . Insert Component 3 | . . 3 . Analyze 3 | . . 3 . Garrison Access Hacks . | . . . . Unauthorized Hacks . | . . . . Terminals . | . . . . Fabricators . | . . . . Repair Stations . | . . . . Recycling Units . | . . . . Scanalyzers . | . . . . Garrison Access . | . . . . Data Cores Recovered 1 | . . 1 . Used . | . . . . Hacking Detections 5 | . 2 1 2 Full Trace Events . | . . . . Feedback Events . | . . . . Feedback Blocked . | . . . . Robot Schematics Acquired . | . . . . Robots Built . | . . . . Authchips . | . . . . Time . | . . . . Total Robot Build Rating . | . . . . Part Schematics Acquired 3 | . . 3 . Parts Built . | . . . . Authchips . | . . . . Time . | . . . . Total Part Build Rating . | . . . . Parts Repaired . | . . . . Time . | . . . . Parts Recycled . | . . . . Recycled Matter . | . . . . Retrieved Matter . | . . . . Retrieved Components . | . . . . Parts Scanalyzed 3 | . . 3 . Part Schematics Acquired 3 | . . 3 . Parts Damaged . | . . . . Bothacking | -11 -10 -9 -9 ------------ Run | Yrd Mat Mat Sto Used RIF Installer . | . . . . Robots Hacked . | . . . . Non-combat . | . . . . Combat . | . . . . Robot Hacks Applied . | . . . . Relay Couplers Released . | . . . . Fabnet Peak Effective % . | . . . . Robots Rewired . | . . . . Allies Hacked . | . . . . Hacks Repelled . | . . . . Allies | -11 -10 -9 -9 -------- Run | Yrd Mat Mat Sto Total Allies . | . . . . Largest Group . | . . . . Highest-Rated Group . | . . . . Highest-Rated Ally . | . . . . Total Orders . | . . . . Ally Attacks . | . . . . Total Damage . | . . . . Kills . | . . . . Allies Corrupted . | . . . . Allies Melted . | . . . . Intel | -11 -10 -9 -9 ------- Run | Yrd Mat Mat Sto Robot Analysis Total . | . . . . Derelict Logs Recovered . | . . . . Drone Launches . | . . . . Drone Recoveries . | . . . . Exploration | -11 -10 -9 -9 ------------- Run | Yrd Mat Mat Sto Turns Passed 4039 | 40 1335 2266 398 Spaces Moved 2260 | 37 722 1275 226 Core 16 | 8 4 4 . Treads 311 | . . 311 . Legs 396 | . 322 74 . Wheels 1537 | 29 396 886 226 Hover . | . . . . Flight . | . . . . Fastest Speed 50 | 50 90 95 110 Average Speed 134 | 81 141 136 110 Slowest Speed 650 | 90 400 650 110 Overloaded Moves . | . . . . Propulsion Burnouts . | . . . . Robots Hopped . | . . . . Cave-ins Triggered . | . . . . Exploration Rate (%) 61 | 4 97 99 44 Regions Visited 3 Branch Regions 1 Pre-discovered Areas . | . . . . Known Exits Taken . | . . . . Unknown Exits Taken 3 | 1 1 1 . Scrap Searched . | . . . . Spaces Dug . | . . . . Terrain Destroyed 17 | . . 17 . Melee . | . . . . Projectile . | . . . . AOE 17 | . . 17 . Terrain Rammed . | . . . . Walls Destroyed . | . . . . Machines Disabled . | . . . . Actions | -11 -10 -9 -9 --------- Run | Yrd Mat Mat Sto Total 2811 | 43 902 1571 295 Wait 188 | . 78 89 21 Move 2257 | 36 721 1274 226 Hop . | . . . . Pick Up 33 | 1 11 18 3 Fast Attach 35 | 6 9 20 . Attach 10 | . 2 8 . Detach . | . . . . Swap 28 | . 7 19 2 Drop 46 | . 4 37 5 Fire 212 | . 68 106 38 Melee . | . . . . Ram 2 | . 2 . . Kick . | . . . . Crush . | . . . . Escape Stasis . | . . . . Rewire . | . . . . Trap . | . . . . Miscellaneous . | . . . . Route ------- -11/Scrapyard -10/Materials (discovered 5 exits: *Mat x3 / *Min x2) -9/Materials (discovered 6 exits: [*Mat x3] / [*Min] / *Sto x2) -9/Storage (discovered 1 exit: Rec) History --------- Turn | Location | Event 14 | -11/Scrapyard | Discovered new exit (range 16) 41 | -11/Scrapyard | Entered Materials 84 | -10/Materials | Identified exit to Mines 304 | -10/Materials | Build established: Mutant 360 | -10/Materials | Discovered new exit (range 8) 693 | -10/Materials | Core integrity fell below 50% 709 | -10/Materials | Lost 5 parts (1p2n2w) 744 | -10/Materials | Discovered new exit (range 12) 995 | -10/Materials | Build established: Scavenger-Mutant 1237 | -10/Materials | Discovered new exit (range 11) 1376 | -10/Materials | Entered another Materials area 1376 | -9/Materials | Evolved 2 slots: Utility x1, Weapon x1 1399 | -9/Materials | Discovered new exit (range 15) 1622 | -9/Materials | Discovered new exit (range 5) 1666 | -9/Materials | Lost 3 parts (1n1u1w) 1896 | -9/Materials | Discovered new exit (range 16) 2095 | -9/Materials | Discovered new exit (range 4) 2162 | -9/Materials | Build established: Tank 2512 | -9/Materials | Discovered new exit (range 10) 2590 | -9/Materials | Discovered new exit (range 12) 2737 | -9/Materials | Build established: Gunner 3473 | -9/Materials | Core integrity fell below 50% 3642 | -9/Materials | Entered Storage 3837 | -9/Storage | Identified exit to Recycling 3864 | -9/Storage | Core integrity fell below 20% 4040 | -9/Storage | Destroyed by Heavy Ion Engine chain reaction Last Messages --------------- 03964_ K-01 Serf collects debris. 03970_ Transport Network Coupler melted. 03970_ A-02 Transporter destroyed. 03972_ K-01 Serf collects debris. 03978_ Connecting with Door Terminal... 03992_ K-01 Serf cleans the Recycling Unit. 03993_ R-06 Scavenger inserts Lgt. Assault Rifle into recycling unit. 03994_ Recycling unit begins recycling process. 03996_ R-06 Scavenger inserts Hvy. Ion Engine into recycling unit. 04024_ Visual Processing Unit melted. 04024_ W-16 Scout destroyed. 04040_ Triggered EMP Trap. 04040_ A bubble of electromagnetic force engulfs the area. 04040_ Wheel destroyed. 04040_ EMP Trap short circuited. 04040_ Door malfunctions. 04040_ A bubble of electromagnetic force engulfs the area. 04040_ Chain reaction triggered in Ion Engine. 04040_ Imp. Medium Laser destroyed. 04040_ Chain reaction triggered in Corrupted Hvy. Ion Engine. Map ----- +----------------------------------------------------+ | | | | | ?????????????????????????????????????????????????? | | ?????????????????????????????????????????????????? | | ???????????????????????????????????############??? | | ???????????????????????????????????# #??? | | ???????????????????????????????????# #??? | | ???????????????????????????????????# #??? | | ???????????????????????????????????# ########??? | | ???????????????????????????????????# #?????????? | | ???????????????????????????????????# #?##??????? | | ???????????????????????????????????# # #??????? | | ???????????????????????????????????# # #???????? | | ???????????????????????????????????# + #???????? | | ???????????????????????????????????# # #???????? | | ???????????????????????????????????# ###???????? | | ???????????????????????????######### #?????????? | | ???????????????????????????#!!!! # #?????????? | | ???????????????????????????# # #?????????? | | ???????????????????????????#!!!! + #?????????? | | ???????????????????????????######T## #?????????? | | ????????????????????????????????##?# #?????????? | | ???????????????????###"#???????????# #?????????? | | ???????????????????#T #??????????#* #?????????? | | ????????????????######;;;###########% %#########?? | | ?????????? t @%=]%]!*! %!*%# ]# [[#?? | | ?????????? %= ]!!! % %+! [[#?? | | ?????????? = =[!!% # ! [#?? | | ???????????###########################%# [ #?? | | ?????????????????????????????????????#%##T# ]]]#?? | | ????????????????????????#####????????#%#### ]]]#?? | | ????????????????????#####"T"####?????# #??######?? | | ????????????????????# ####### ##########? | | ????????????????????## """" + + ## | | ????????????????????#T """" #### %# ## | | ????????????????????## """" ""?# % # ## | | ?????????????????????# """" R"# # ## | | ?????????????????????# """# #### ## | | ?????????????????????# #### #??# ## | | ?????????????????????# #### ##?# ## | | ?????????????????????######+#### #?# ## | | ?????????????????????# #?# ## | | ?????????????????????# ######+###+## | | ?????????????????????# """ # | | ?????????????????????########### ^"Y" + | | ??????????????????????????########+#######^ ^ # | | ??????????????????????????#%[^=! %[% # ^ # | | ??????????????????????????##//= [== # ] | | ???????????????????????????#!/= ^ # % | | ???????????????????????????#*^ %% | +----------------------------------------------------+ Best States ------------- Heat Dissipation 52 Energy Generation 14 Energy Capacity 280 Matter Stores 300 Matter Capacity 300 Sight Range 16 Terrain Scan Density 10 Armor Coverage 150 Evasion (%) 50 Targeting Accuracy 6 Recoil Reduction 2 Item Schematics ----------------- Imp. Medium Laser | -9/Materials | Scanalyzed Cooling System | -9/Materials | Scanalyzed Adv. Beam Cannon | -9/Materials | Scanalyzed Robot Schematics ------------------ None Fabricated ------------ Nothing Alien Tech Used ----------------- None Achievements -------------- None Challenges ------------ None Game ------ Seed BottomlessMobileCapacitor Manual? 0 Play Time 00:38:11 Cumulative 251.5 hours Start 2024.04.14 @ 12:24:57 End 2024.04.14 @ 13:00:32 Sessions 1 Manual Loads 0 Difficulty Rogue Special Mode None Game No. 193 Rogue 181 Adventurer 12 Explorer 0 Win Type - Total 1 Types 1/0/0/0/0/0/0/0/0 Lore% 30 Gallery% 49 Achievement% 35 Wizard Run 0 Options --------- Layout 1 ASCII 0 Keyboard 0 Movement Mouse Keybinds 0 Fullscreen 1 Font 32/SmallcapsGlow Map View 77x35 Zoom Use 0% Tactical HUD 1 Map Filters NONE Filters NONE Steam 1 RUN: 467ceb64-3472-41e1-829e-f27cd9fd5afc